[Event "56th Biel Festival MTO 2023"]
[White "Costello,Alexander"]
[Black "Collin,Moritz Valentin"]
[Site "Biel"]
[Round "7.33"]
[Annotator "ChessBase"]
[Result "1-0"]
[Date "2023.07.25"]
[WhiteElo "2224"]
[BlackElo "2132"]
[PlyCount "51"]
[TimeControl "60"]

1. c4 {[%emt 0:0:0]} e5 {[%emt 0:0:0]} 2. Qc2 {[%emt 0:0:0]} Nf6 {[%emt 0:0:0]} 3. e3 {[%emt 0:0:0]} Nc6 {[%emt 0:0:0]} 4. a3 {[%emt 0:0:0]} a5 {[%emt 0:2:10]} 5. Nc3 {[%emt 0:0:0]} Bc5 {[%emt 0:0:53]} 6. Be2 {[%emt 0:8:55]} O-O {[%emt 0:2:3]} 7. Bf3 {[%emt 0:1:45]} Ne7 {[%emt 0:16:19]} 8. Nge2 {[%emt 0:0:55]} d6 {[%emt 0:6:15]} 9. O-O {[%emt 0:25:22]} Bf5 {[%emt 0:4:19]} 10. d3 {[%emt 0:0:15]} c6 {[%emt 0:3:20]} 11. Ne4 {[%emt 0:3:42]} Ng6 {[%emt 0:9:37]} 12. N2g3 {[%emt 0:4:19]} Be6 {[%emt 0:4:9]} 13. Nxc5 {[%emt 0:14:8]} dxc5 {[%emt 0:2:53]} 14. b3 {[%emt 0:0:2]} Nd7 {[%emt 0:11:59]} 15. Be2 {[%emt 0:5:49]} f5 {[%emt 0:13:34]} 16. f4 {[%emt 0:2:38]} Qc7 {[%emt 0:0:10]} 17. Bb2 {[%emt 0:5:49]} exf4 {[%emt 0:4:32]} 18. Nh5 {[%emt 0:0:14]} fxe3 {[%emt 0:1:22]} 19. Nxg7 {[%emt 0:0:45]} Qd6 {[%emt 0:0:55]} 20. d4 {[%emt 0:11:33]} cxd4 {[%emt 0:1:14]} 21. Bxd4 {[%emt 0:0:3]} f4 {[%emt 0:4:52]} 22. Rad1 {[%emt 0:3:31]} Qe7 {[%emt 0:2:26]} 23. Qe4 {[%emt 0:0:48]} Bf5 {[%emt 0:3:45]} 24. Nxf5 {[%emt 0:2:14]} Qg5 {[%emt 0:1:57]} 25. Qe6+ {[%emt 0:2:34]} Rf7 {[%emt 0:0:13]} 26. Nd6 {[%emt 0:0:42]} 1-0

[Event "56th Biel Festival MTO 2023"]
[White "Malli,Suvirr"]
[Black "Kamber,Bruno"]
[Site "Biel"]
[Round "7.34"]
[Annotator "ChessBase"]
[Result "0-1"]
[Date "2023.07.25"]
[WhiteElo "2094"]
[BlackElo "2214"]
[PlyCount "100"]
[TimeControl "60"]

1. e4 {[%emt 0:0:0]} c6 {[%emt 0:0:0]} 2. d4 {[%emt 0:0:0]} d5 {[%emt 0:0:0]} 3. exd5 {[%emt 0:0:0]} cxd5 {[%emt 0:0:0]} 4. Nf3 {[%emt 0:0:0]} a6 {[%emt 0:0:0]} 5. Ne5 {[%emt 0:0:0]} Nc6 {[%emt 0:0:0]} 6. c3 {[%emt 0:0:0]} Nxe5 {[%emt 0:0:0]} 7. dxe5 {[%emt 0:0:0]} Bf5 {[%emt 0:0:0]} 8. Be2 {[%emt 0:0:30]} e6 {[%emt 0:0:0]} 9. Be3 {[%emt 0:0:31]} Ne7 {[%emt 0:0:0]} 10. O-O {[%emt 0:0:46]} Nc6 {[%emt 0:0:0]} 11. f4 {[%emt 0:0:41]} h5 {[%emt 0:2:8]} 12. a4 {[%emt 0:3:51]} g6 {[%emt 0:1:15]} 13. Na3 {[%emt 0:9:9]} Be7 {[%emt 0:1:3]} 14. Nc2 {[%emt 0:9:22]} Rc8 {[%emt 0:1:8]} 15. Nd4 {[%emt 0:1:0]} Nxd4 {[%emt 0:0:26]} 16. Bxd4 {[%emt 0:0:30]} Bc5 {[%emt 0:0:23]} 17. a5 {[%emt 0:0:43]} Kf8 {[%emt 0:5:39]} 18. Bxc5+ {[%emt 0:10:38]} Rxc5 {[%emt 0:0:9]} 19. Qd4 {[%emt 0:0:27]} Qc7 {[%emt 0:0:44]} 20. Qb4 {[%emt 0:0:43]} Kg7 {[%emt 0:0:13]} 21. h3 {[%emt 0:4:41]} Rb8 {[%emt 0:3:37]} 22. Qa3 {[%emt 0:7:31]} b6 {[%emt 0:1:53]} 23. Kh2 {[%emt 0:4:16]} Rxa5 {[%emt 0:14:17]} 24. Qb4 {[%emt 0:2:8]} Rxa1 {[%emt 0:0:18]} 25. Rxa1 {[%emt 0:0:5]} a5 {[%emt 0:0:7]} 26. Qd4 {[%emt 0:2:6]} b5 {[%emt 0:1:24]} 27. Qf2 {[%emt 0:2:54]} b4 {[%emt 0:0:21]} 28. Qg3 {[%emt 0:2:32]} bxc3 {[%emt 0:6:30]} 29. Qxc3 {[%emt 0:3:3]} Qxc3 {[%emt 0:0:48]} 30. bxc3 {[%emt 0:0:4]} Rb3 {[%emt 0:0:48]} 31. Rxa5 {[%emt 0:1:5]} Rxc3 {[%emt 0:0:9]} 32. Ra1 {[%emt 0:3:42]} h4 {[%emt 0:0:30]} 33. Rd1 {[%emt 0:2:0]} Re3 {[%emt 0:0:33]} 34. Bf1 {[%emt 0:15:18]} Rg3 {[%emt 0:2:36]} 35. Rd4 {[%emt 0:3:21]} Be4 {[%emt 0:0:40]} 36. Rd2 {[%emt 0:1:30]} g5 {[%emt 0:0:59]} 37. Rf2 {[%emt 0:0:8]} Kg6 {[%emt 0:2:52]} 38. fxg5 {[%emt 0:1:20]} Bf5 {[%emt 0:0:21]} 39. Bb5 {[%emt 0:2:10]} Rb3 {[%emt 0:1:45]} 40. Be8 {[%emt 0:0:34]} Rb8 {[%emt 0:1:19]} 41. Ba4 {[%emt 0:31:39]} Kxg5 {[%emt 0:30:32]} 42. g4 {[%emt 0:4:4]} Be4 {[%emt 0:0:31]} 43. Bc2 {[%emt 0:2:53]} Rb2 {[%emt 0:0:18]} 44. Rxf7 {[%emt 0:0:28]} Rxc2+ {[%emt 0:1:15]} 45. Kg1 {[%emt 0:0:3]} d4 {[%emt 0:0:28]} 46. Kf1 {[%emt 0:0:25]} Bg2+ {[%emt 0:0:43]} 47. Ke1 {[%emt 0:0:2]} d3 {[%emt 0:0:29]} 48. Rd7 {[%emt 0:0:23]} Bd5 {[%emt 0:0:24]} 49. Rh7 {[%emt 0:0:14]} Kf4 {[%emt 0:0:20]} 50. Rxh4 {[%emt 0:0:10]} Ke3 {[%emt 0:0:7]} 0-1

[Event "56th Biel Festival MTO 2023"]
[White "Monteverde,Jonathan"]
[Black "Toktomushev,Teimur"]
[Site "Biel"]
[Round "7.35"]
[Annotator "ChessBase"]
[Result "1-0"]
[Date "2023.07.25"]
[WhiteElo "2074"]
[BlackElo "2206"]
[PlyCount "79"]
[TimeControl "60"]

1. d4 {[%emt 0:0:0]} d5 {[%emt 0:0:0]} 2. c4 {[%emt 0:0:0]} e6 {[%emt 0:0:0]} 3. Nc3 {[%emt 0:0:0]} Nf6 {[%emt 0:0:0]} 4. cxd5 {[%emt 0:0:0]} exd5 {[%emt 0:0:0]} 5. Bg5 {[%emt 0:0:0]} Be7 {[%emt 0:0:0]} 6. e3 {[%emt 0:0:0]} c6 {[%emt 0:0:0]} 7. Bd3 {[%emt 0:0:0]} Nbd7 {[%emt 0:0:0]} 8. Nge2 {[%emt 0:0:0]} Nh5 {[%emt 0:0:0]} 9. Bxe7 {[%emt 0:0:0]} Qxe7 {[%emt 0:0:0]} 10. Qd2 {[%emt 0:0:0]} O-O {[%emt 0:0:0]} 11. g4 {[%emt 0:12:27]} Nhf6 {[%emt 0:0:0]} 12. f3 {[%emt 0:0:6]} Re8 {[%emt 0:9:46]} 13. Kf2 {[%emt 0:0:9]} Nb6 {[%emt 0:7:31]} 14. Rag1 {[%emt 0:18:40]} c5 {[%emt 0:6:59]} 15. h4 {[%emt 0:6:4]} cxd4 {[%emt 0:6:55]} 16. Nxd4 {[%emt 0:1:0]} Nfd7 {[%emt 0:7:11]} 17. b3 {[%emt 0:6:31]} Ne5 {[%emt 0:3:25]} 18. Bb1 {[%emt 0:0:54]} Bd7 {[%emt 0:7:37]} 19. Nce2 {[%emt 0:18:12]} a5 {[%emt 0:17:17]} 20. g5 {[%emt 0:1:51]} a4 {[%emt 0:0:32]} 21. h5 {[%emt 0:0:18]} axb3 {[%emt 0:1:42]} 22. axb3 {[%emt 0:5:48]} Ra3 {[%emt 0:7:15]} 23. Qc2 {[%emt 0:4:25]} g6 {[%emt 0:1:9]} 24. hxg6 {[%emt 0:0:10]} fxg6 {[%emt 0:14:37]} 25. Rh6 {[%emt 0:7:41]} Rf8 {[%emt 0:10:28]} 26. Nf4 {[%emt 0:2:53]} Raa8 {[%emt 0:0:34]} 27. Nxg6 {[%emt 0:3:45]} Nxg6 {[%emt 0:0:18]} 28. Rxg6+ {[%emt 0:0:6]} hxg6 {[%emt 0:0:5]} 29. Qxg6+ {[%emt 0:0:5]} Qg7 {[%emt 0:0:30]} 30. Qxb6 {[%emt 0:0:18]} Ra1 {[%emt 0:1:8]} 31. Qxb7 {[%emt 0:5:6]} Rfa8 {[%emt 0:0:30]} 32. Qxd5+ {[%emt 0:0:34]} Kf8 {[%emt 0:0:10]} 33. Qd6+ {[%emt 0:4:15]} Kg8 {[%emt 0:0:28]} 34. Qd5+ {[%emt 0:2:3]} Kf8 {[%emt 0:0:4]} 35. f4 {[%emt 0:0:23]} R8a5 {[%emt 0:1:18]} 36. Qd6+ {[%emt 0:0:32]} Kg8 {[%emt 0:0:18]} 37. Qb8+ {[%emt 0:0:18]} Kf7 {[%emt 0:0:8]} 38. Qd8 {[%emt 0:1:1]} Bf5 {[%emt 0:1:2]} 39. Bxf5 {[%emt 0:1:32]} R5a2+ {[%emt 0:0:10]} 40. Nc2 {[%emt 0:2:37]} 1-0

[Event "56th Biel Festival MTO 2023"]
[White "Ehsani,Yassamin"]
[Black "Kocharin,Timur"]
[Site "Biel"]
[Round "7.36"]
[Annotator "ChessBase"]
[Result "0-1"]
[Date "2023.07.25"]
[WhiteElo "2106"]
[BlackElo "2225"]
[PlyCount "76"]
[TimeControl "60"]

1. d4 {[%emt 0:0:0]} Nf6 {[%emt 0:0:0]} 2. c4 {[%emt 0:0:0]} g6 {[%emt 0:0:0]} 3. Nc3 {[%emt 0:0:0]} Bg7 {[%emt 0:0:0]} 4. e4 {[%emt 0:0:0]} d6 {[%emt 0:0:0]} 5. f3 {[%emt 0:0:0]} O-O {[%emt 0:0:0]} 6. Nge2 {[%emt 0:0:0]} c5 {[%emt 0:0:0]} 7. d5 {[%emt 0:0:0]} e6 {[%emt 0:0:0]} 8. Ng3 {[%emt 0:0:0]} exd5 {[%emt 0:0:0]} 9. cxd5 {[%emt 0:0:0]} a6 {[%emt 0:0:0]} 10. a4 {[%emt 0:0:0]} h5 {[%emt 0:0:13]} 11. Bg5 {[%emt 0:0:0]} Nbd7 {[%emt 0:1:13]} 12. Be2 {[%emt 0:0:0]} Qc7 {[%emt 0:0:44]} 13. O-O {[%emt 0:0:0]} c4 {[%emt 0:5:18]} 14. Qd2 {[%emt 0:9:32]} Rb8 {[%emt 0:10:9]} 15. Rfc1 {[%emt 0:28:16]} b5 {[%emt 0:3:31]} 16. axb5 {[%emt 0:2:25]} axb5 {[%emt 0:1:52]} 17. b4 {[%emt 0:4:52]} Ne5 {[%emt 0:21:56]} 18. Be3 {[%emt 0:2:46]} h4 {[%emt 0:8:5]} 19. Nh1 {[%emt 0:0:44]} h3 {[%emt 0:8:46]} 20. g3 {[%emt 0:1:42]} Bd7 {[%emt 0:4:37]} 21. Ra2 {[%emt 0:7:52]} Ra8 {[%emt 0:2:38]} 22. Rca1 {[%emt 0:0:15]} Rxa2 {[%emt 0:5:19]} 23. Rxa2 {[%emt 0:0:32]} Nh7 {[%emt 0:10:41]} 24. Ra7 {[%emt 0:5:37]} Qc8 {[%emt 0:0:15]} 25. Nf2 {[%emt 0:6:14]} f5 {[%emt 0:3:35]} 26. Bd4 {[%emt 0:9:32]} fxe4 {[%emt 0:2:6]} 27. Ncxe4 {[%emt 0:3:54]} Nxf3+ {[%emt 0:2:32]} 28. Bxf3 {[%emt 0:0:6]} Rxf3 {[%emt 0:1:6]} 29. Bxg7 {[%emt 0:0:13]} Kxg7 {[%emt 0:0:8]} 30. Qe2 {[%emt 0:1:48]} Rb3 {[%emt 0:4:39]} 31. Nd2 {[%emt 0:2:26]} Nf8 {[%emt 0:1:52]} 32. Qe7+ {[%emt 0:8:42]} Kh8 {[%emt 0:0:18]} 33. Qf6+ {[%emt 0:0:18]} Kg8 {[%emt 0:0:13]} 34. Ng4 {[%emt 0:3:9]} Qe8 {[%emt 0:1:41]} 35. Qf2 {[%emt 0:3:38]} Bxg4 {[%emt 0:0:12]} 36. Nxb3 {[%emt 0:2:0]} cxb3 {[%emt 0:0:6]} 37. Ra1 {[%emt 0:0:8]} Bf5 {[%emt 0:0:28]} 38. Rf1 {[%emt 0:0:36]} Qe4 {[%emt 0:0:8]} 0-1

[Event "56th Biel Festival MTO 2023"]
[White "Matta,Vinay Kumar"]
[Black "Ribiere,Damien"]
[Site "Biel"]
[Round "7.37"]
[Annotator "ChessBase"]
[Result "1-0"]
[Date "2023.07.25"]
[WhiteElo "2111"]
[BlackElo "2213"]
[PlyCount "83"]
[TimeControl "60"]

1. e4 {[%emt 0:0:0]} e5 {[%emt 0:0:0]} 2. Bc4 {[%emt 0:0:0]} Nf6 {[%emt 0:0:0]} 3. d3 {[%emt 0:0:0]} Nc6 {[%emt 0:0:0]} 4. Nc3 {[%emt 0:0:0]} Na5 {[%emt 0:0:0]} 5. Nge2 {[%emt 0:0:0]} Bc5 {[%emt 0:0:0]} 6. Ng3 {[%emt 0:0:0]} d6 {[%emt 0:0:0]} 7. h3 {[%emt 0:0:0]} h6 {[%emt 0:0:0]} 8. Qf3 {[%emt 0:0:4]} Nxc4 {[%emt 0:1:26]} 9. dxc4 {[%emt 0:0:59]} Be6 {[%emt 0:10:48]} 10. b3 {[%emt 0:1:26]} c6 {[%emt 0:3:44]} 11. Bb2 {[%emt 0:2:24]} a6 {[%emt 0:2:51]} 12. O-O {[%emt 0:10:42]} O-O {[%emt 0:10:20]} 13. Rad1 {[%emt 0:0:48]} Qe7 {[%emt 0:5:59]} 14. Na4 {[%emt 0:1:52]} Nd7 {[%emt 0:5:28]} 15. Nxc5 {[%emt 0:16:58]} Nxc5 {[%emt 0:0:46]} 16. Qe3 {[%emt 0:0:41]} b5 {[%emt 0:4:59]} 17. f4 {[%emt 0:2:11]} f6 {[%emt 0:0:10]} 18. fxe5 {[%emt 0:7:53]} fxe5 {[%emt 0:0:16]} 19. Rxf8+ {[%emt 0:0:37]} Rxf8 {[%emt 0:3:0]} 20. cxb5 {[%emt 0:2:48]} axb5 {[%emt 0:3:28]} 21. Kh2 {[%emt 0:4:36]} Ra8 {[%emt 0:11:9]} 22. a3 {[%emt 0:1:19]} Rf8 {[%emt 0:0:57]} 23. Bc3 {[%emt 0:2:22]} Rf4 {[%emt 0:6:42]} 24. Bb4 {[%emt 0:5:32]} Rf6 {[%emt 0:12:53]} 25. Qd2 {[%emt 0:3:5]} Rg6 {[%emt 0:7:3]} 26. Qxd6 {[%emt 0:1:36]} Qxd6 {[%emt 0:6:42]} 27. Rxd6 {[%emt 0:1:28]} Rxg3 {[%emt 0:0:2]} 28. Rd8+ {[%emt 0:0:36]} Kf7 {[%emt 0:0:3]} 29. Kxg3 {[%emt 0:0:15]} Nxe4+ {[%emt 0:0:4]} 30. Kf3 {[%emt 0:1:57]} Ng5+ {[%emt 0:0:10]} 31. Ke3 {[%emt 0:0:36]} Bd5 {[%emt 0:0:58]} 32. Rd7+ {[%emt 0:1:4]} Kf6 {[%emt 0:1:2]} 33. g3 {[%emt 0:8:6]} Ne6 {[%emt 0:1:17]} 34. a4 {[%emt 0:4:4]} bxa4 {[%emt 0:0:23]} 35. bxa4 {[%emt 0:0:6]} Nd4 {[%emt 0:0:40]} 36. c3 {[%emt 0:1:48]} Nf5+ {[%emt 0:0:5]} 37. Kf2 {[%emt 0:0:25]} Ke6 {[%emt 0:1:0]} 38. Rd8 {[%emt 0:0:21]} g5 {[%emt 0:2:28]} 39. g4 {[%emt 0:1:20]} Ng7 {[%emt 0:1:11]} 40. Bf8 {[%emt 0:1:9]} Kf7 {[%emt 0:0:45]} 41. Bxg7 {[%emt 0:30:12]} Kxg7 {[%emt 0:30:1]} 42. Rxd5 {[%emt 0:0:22]} 1-0

[Event "56th Biel Festival MTO 2023"]
[White "Foerster-Yialamas,Lucas"]
[Black "Matsumura,Cocoro"]
[Site "Biel"]
[Round "7.38"]
[Annotator "ChessBase"]
[Result "0-1"]
[Date "2023.07.25"]
[WhiteElo "2157"]
[BlackElo "2081"]
[PlyCount "130"]
[TimeControl "60"]

1. e4 {[%emt 0:0:0]} c5 {[%emt 0:0:0]} 2. Nf3 {[%emt 0:0:0]} d6 {[%emt 0:0:0]} 3. d4 {[%emt 0:0:0]} cxd4 {[%emt 0:0:0]} 4. Nxd4 {[%emt 0:0:0]} Nf6 {[%emt 0:0:0]} 5. Nc3 {[%emt 0:0:0]} a6 {[%emt 0:0:0]} 6. f3 {[%emt 0:0:0]} e5 {[%emt 0:0:0]} 7. Nb3 {[%emt 0:0:0]} Be6 {[%emt 0:0:0]} 8. Be3 {[%emt 0:0:0]} Be7 {[%emt 0:0:0]} 9. Qd2 {[%emt 0:0:0]} O-O {[%emt 0:0:0]} 10. O-O-O {[%emt 0:0:0]} Nbd7 {[%emt 0:0:0]} 11. g4 {[%emt 0:0:0]} b5 {[%emt 0:0:0]} 12. g5 {[%emt 0:0:0]} b4 {[%emt 0:0:0]} 13. Na4 {[%emt 0:0:0]} Nh5 {[%emt 0:0:0]} 14. Qxb4 {[%emt 0:0:0]} d5 {[%emt 0:0:0]} 15. Qa5 {[%emt 0:0:0]} Qxa5 {[%emt 0:0:0]} 16. Nxa5 {[%emt 0:0:0]} d4 {[%emt 0:0:0]} 17. Bd2 {[%emt 0:7:29]} Bxa2 {[%emt 0:0:0]} 18. Bh3 {[%emt 0:5:50]} Be6 {[%emt 0:3:46]} 19. Bg4 {[%emt 0:0:43]} g6 {[%emt 0:0:50]} 20. Rhg1 {[%emt 0:25:1]} Rfc8 {[%emt 0:2:49]} 21. Bxe6 {[%emt 0:1:25]} fxe6 {[%emt 0:0:2]} 22. b3 {[%emt 0:4:0]} Rab8 {[%emt 0:13:20]} 23. Rde1 {[%emt 0:21:11]} d3 {[%emt 0:6:41]} 24. Nc4 {[%emt 0:15:58]} Rxc4 {[%emt 0:2:45]} 25. bxc4 {[%emt 0:0:3]} Ba3+ {[%emt 0:0:11]} 26. Kd1 {[%emt 0:9:37]} Rb1+ {[%emt 0:2:26]} 27. Bc1 {[%emt 0:0:30]} Rxc1+ {[%emt 0:0:30]} 28. Kd2 {[%emt 0:0:30]} Rxc2+ {[%emt 0:0:30]} 29. Kxd3 {[%emt 0:0:30]} Rxh2 {[%emt 0:0:30]} 30. Rh1 {[%emt 0:0:30]} Rf2 {[%emt 0:0:30]} 31. Ke3 {[%emt 0:0:30]} Rc2 {[%emt 0:5:54]} 32. Kd3 {[%emt 0:9:7]} Rg2 {[%emt 0:1:46]} 33. Rb1 {[%emt 0:0:30]} a5 {[%emt 0:4:3]} 34. c5 {[%emt 0:4:6]} Nxc5+ {[%emt 1:0:57]} 35. Nxc5 {[%emt 0:0:30]} Bxc5 {[%emt 0:0:30]} 36. Rb8+ {[%emt 0:0:30]} Bf8 {[%emt 0:0:30]} 37. Ra1 {[%emt 0:0:30]} Nf4+ {[%emt 0:0:30]} 38. Kc4 {[%emt 0:0:30]} Rc2+ {[%emt 0:0:30]} 39. Kb3 {[%emt 0:0:30]} Rf2 {[%emt 0:0:30]} 40. Rxa5 {[%emt 0:0:30]} Rxf3+ {[%emt 0:0:30]} 41. Kc4 {[%emt 0:30:30]} Ne2 {[%emt 0:30:30]} 42. Rd8 {[%emt 0:0:30]} Rc3+ {[%emt 0:0:30]} 43. Kb5 {[%emt 0:0:30]} Rc5+ {[%emt 0:0:30]} 44. Kb6 {[%emt 0:0:30]} Rxa5 {[%emt 0:0:30]} 45. Kxa5 {[%emt 0:0:30]} Nc3 {[%emt 0:0:30]} 46. Rd2 {[%emt 0:0:30]} Nxe4 {[%emt 0:0:30]} 47. Re2 {[%emt 0:0:30]} Nxg5 {[%emt 0:0:30]} 48. Rxe5 {[%emt 0:0:30]} Be7 {[%emt 0:0:30]} 49. Kb5 {[%emt 0:0:30]} h5 {[%emt 0:0:30]} 50. Kc4 {[%emt 0:0:30]} Kf7 {[%emt 0:0:30]} 51. Kd3 {[%emt 0:0:30]} h4 {[%emt 0:0:30]} 52. Ke2 {[%emt 0:0:30]} Kf6 {[%emt 0:0:30]} 53. Rb5 {[%emt 0:0:30]} e5 {[%emt 0:0:30]} 54. Kf2 {[%emt 0:0:30]} Kf5 {[%emt 0:0:30]} 55. Rb8 {[%emt 0:0:30]} Bc5+ {[%emt 0:0:30]} 56. Kg2 {[%emt 0:0:30]} Ne6 {[%emt 0:0:30]} 57. Re8 {[%emt 0:0:30]} g5 {[%emt 0:0:30]} 58. Kf3 {[%emt 0:0:30]} g4+ {[%emt 0:0:30]} 59. Kg2 {[%emt 0:0:30]} Nf4+ {[%emt 0:0:30]} 60. Kh1 {[%emt 0:0:30]} Be7 {[%emt 0:0:30]} 61. Ra8 {[%emt 0:0:30]} g3 {[%emt 0:0:30]} 62. Rc8 {[%emt 0:0:30]} Kg4 {[%emt 0:0:30]} 63. Rc7 {[%emt 0:0:30]} Kh3 {[%emt 0:0:30]} 64. Rc2 {[%emt 0:0:30]} g2+ {[%emt 0:0:30]} 65. Kg1 {[%emt 0:0:30]} Bc5+ {[%emt 0:0:30]} 0-1

[Event "56th Biel Festival MTO 2023"]
[White "Ammar,Sedrani"]
[Black "Erne,Raphael"]
[Site "Biel"]
[Round "7.39"]
[Annotator "ChessBase"]
[Result "1-0"]
[Date "2023.07.26"]
[WhiteElo "2154"]
[BlackElo "2077"]
[PlyCount "147"]
[TimeControl "60"]

1. d4 {[%emt 0:0:0]} d5 {[%emt 0:0:0]} 2. Bf4 {[%emt 0:0:0]} c5 {[%emt 0:0:0]} 3. e3 {[%emt 0:0:0]} Nc6 {[%emt 0:0:0]} 4. Nc3 {[%emt 0:0:0]} cxd4 {[%emt 0:10:48]} 5. exd4 {[%emt 0:0:0]} a6 {[%emt 0:6:3]} 6. Nf3 {[%emt 0:0:0]} Bg4 {[%emt 0:1:34]} 7. Be2 {[%emt 0:0:0]} e6 {[%emt 0:3:36]} 8. O-O {[%emt 0:0:0]} Nf6 {[%emt 0:2:42]} 9. h3 {[%emt 0:1:41]} Bxf3 {[%emt 0:3:42]} 10. Bxf3 {[%emt 0:0:2]} Be7 {[%emt 0:0:31]} 11. Ne2 {[%emt 0:0:8]} Rc8 {[%emt 0:5:56]} 12. c3 {[%emt 0:0:16]} Na5 {[%emt 0:4:38]} 13. Nc1 {[%emt 0:0:17]} O-O {[%emt 0:4:0]} 14. Re1 {[%emt 0:0:10]} Nc4 {[%emt 0:2:43]} 15. Nd3 {[%emt 0:0:8]} Nd7 {[%emt 0:7:45]} 16. Qb3 {[%emt 0:8:29]} b6 {[%emt 0:4:44]} 17. Re2 {[%emt 0:4:33]} Bg5 {[%emt 0:4:50]} 18. Rae1 {[%emt 0:0:14]} Bxf4 {[%emt 0:1:52]} 19. Nxf4 {[%emt 0:0:4]} Nf6 {[%emt 0:0:45]} 20. g3 {[%emt 0:5:46]} Qd7 {[%emt 0:3:26]} 21. Kg2 {[%emt 0:1:17]} a5 {[%emt 0:1:25]} 22. Qd1 {[%emt 0:4:15]} Rb8 {[%emt 0:6:37]} 23. a3 {[%emt 0:3:14]} Rfc8 {[%emt 0:2:32]} 24. h4 {[%emt 0:3:24]} Qc7 {[%emt 0:5:29]} 25. Nd3 {[%emt 0:12:58]} Nd6 {[%emt 0:5:29]} 26. Rc2 {[%emt 0:12:5]} Nc4 {[%emt 0:3:58]} 27. Qc1 {[%emt 0:3:23]} Qd6 {[%emt 0:2:12]} 28. Ree2 {[%emt 0:6:2]} Qc7 {[%emt 0:2:40]} 29. Qg5 {[%emt 0:9:49]} h6 {[%emt 0:0:48]} 30. Qc1 {[%emt 0:0:4]} Qd6 {[%emt 0:0:44]} 31. Re1 {[%emt 0:2:24]} Nd7 {[%emt 0:1:0]} 32. Rce2 {[%emt 0:2:3]} Re8 {[%emt 0:1:0]} 33. g4 {[%emt 0:5:2]} Nf8 {[%emt 0:0:27]} 34. Nf4 {[%emt 0:2:6]} e5 {[%emt 0:1:8]} 35. dxe5 {[%emt 0:7:55]} Rxe5 {[%emt 0:0:11]} 36. Rxe5 {[%emt 0:0:46]} Nxe5 {[%emt 0:0:1]} 37. Qe3 {[%emt 0:1:15]} Nxf3 {[%emt 0:0:12]} 38. Qxf3 {[%emt 0:0:3]} Ng6 {[%emt 0:1:28]} 39. Nxg6 {[%emt 0:0:8]} fxg6 {[%emt 0:1:6]} 40. Rd1 {[%emt 0:1:27]} Rd8 {[%emt 0:1:28]} 41. Rd4 {[%emt 0:31:42]} Qe7 {[%emt 0:0:0]} 42. Qd3 {[%emt 0:0:0]} Rd6 {[%emt 0:0:0]} 43. Rxd5 {[%emt 0:0:0]} Rxd5 {[%emt 0:0:0]} 44. Qxd5+ {[%emt 0:0:0]} Kh8 {[%emt 0:0:30]} 45. Qc6 {[%emt 0:0:0]} Qxh4 {[%emt 0:1:47]} 46. Qxg6 {[%emt 0:0:0]} Qd8 {[%emt 0:1:11]} 47. Qc6 {[%emt 0:0:0]} h5 {[%emt 0:3:35]} 48. gxh5 {[%emt 0:0:0]} Qg5+ {[%emt 0:0:24]} 49. Kf3 {[%emt 0:0:0]} Qxh5+ {[%emt 0:1:28]} 50. Ke3 {[%emt 0:0:0]} Qg5+ {[%emt 0:2:21]} 51. Ke2 {[%emt 0:0:0]} Qg4+ {[%emt 0:2:23]} 52. Qf3 {[%emt 0:0:0]} Qe6+ {[%emt 0:2:34]} 53. Kd2 {[%emt 0:0:0]} Qd6+ {[%emt 0:3:55]} 54. Qd3 {[%emt 0:0:0]} Qf4+ {[%emt 0:2:24]} 55. Qe3 {[%emt 0:0:0]} Qd6+ {[%emt 0:2:0]} 56. Qd4 {[%emt 0:0:0]} Qc7 {[%emt 0:1:32]} 57. c4 {[%emt 0:0:0]} Qb8 {[%emt 0:2:26]} 58. Kc3 {[%emt 0:0:0]} Qa7 {[%emt 0:6:20]} 59. Qe5 {[%emt 0:0:0]} Kg8 {[%emt 0:3:12]} 60. Kb3 {[%emt 0:0:0]} Kf8 {[%emt 0:2:3]} 61. Qd6+ {[%emt 0:0:0]} Kg8 {[%emt 0:0:0]} 62. Ka4 {[%emt 0:0:0]} Qa6 {[%emt 0:0:0]} 63. Qc6 {[%emt 0:0:0]} Kf8 {[%emt 0:0:0]} 64. b3 {[%emt 0:0:0]} Kg8 {[%emt 0:0:0]} 65. f3 {[%emt 0:0:0]} Qa7 {[%emt 0:0:0]} 66. Kb5 {[%emt 0:0:0]} Qe7 {[%emt 0:0:0]} 67. Qd5+ {[%emt 0:0:0]} Kf8 {[%emt 0:0:47]} 68. Kxb6 {[%emt 0:0:0]} Qf6+ {[%emt 0:0:13]} 69. Kxa5 {[%emt 0:0:0]} Qc3+ {[%emt 0:0:7]} 70. Ka4 {[%emt 0:0:0]} Ke8 {[%emt 0:0:21]} 71. c5 {[%emt 0:0:0]} Kf8 {[%emt 0:0:26]} 72. c6 {[%emt 0:0:0]} Qe3 {[%emt 0:0:22]} 73. c7 {[%emt 0:0:7]} Qa7+ {[%emt 0:1:12]} 74. Qa5 {[%emt 0:0:19]} 1-0

[Event "56th Biel Festival MTO 2023"]
[White "Prieb,Robert"]
[Black "Jaksland,Tim"]
[Site "Biel"]
[Round "7.40"]
[Annotator "ChessBase"]
[Result "1-0"]
[Date "2023.07.25"]
[WhiteElo "2060"]
[BlackElo "2136"]
[PlyCount "106"]
[TimeControl "60"]

1. d4 {[%emt 0:0:0]} Nf6 {[%emt 0:0:0]} 2. c4 {[%emt 0:0:0]} e6 {[%emt 0:0:0]} 3. Nf3 {[%emt 0:0:0]} d5 {[%emt 0:0:0]} 4. Nc3 {[%emt 0:0:0]} Bb4 {[%emt 0:0:0]} 5. Qa4+ {[%emt 0:0:0]} Nc6 {[%emt 0:0:0]} 6. e3 {[%emt 0:0:0]} O-O {[%emt 0:0:0]} 7. Bd2 {[%emt 0:0:0]} dxc4 {[%emt 0:0:0]} 8. Bxc4 {[%emt 0:0:0]} Bd6 {[%emt 0:0:0]} 9. O-O {[%emt 0:0:0]} e5 {[%emt 0:3:3]} 10. d5 {[%emt 0:13:2]} Ne7 {[%emt 0:23:37]} 11. Qc2 {[%emt 0:7:15]} Ng6 {[%emt 0:17:44]} 12. Kh1 {[%emt 0:11:9]} a6 {[%emt 0:3:41]} 13. a3 {[%emt 0:6:52]} h6 {[%emt 0:4:46]} 14. Bd3 {[%emt 0:5:12]} Ne7 {[%emt 0:5:19]} 15. e4 {[%emt 0:6:46]} Ng6 {[%emt 0:0:37]} 16. b4 {[%emt 0:5:41]} Nh5 {[%emt 0:2:2]} 17. Ne2 {[%emt 0:2:32]} Bd7 {[%emt 0:5:28]} 18. a4 {[%emt 0:2:50]} Qe7 {[%emt 0:1:40]} 19. Rab1 {[%emt 0:4:28]} Qf6 {[%emt 0:5:14]} 20. Be3 {[%emt 0:5:58]} b6 {[%emt 0:11:30]} 21. Rfe1 {[%emt 0:5:40]} Nhf4 {[%emt 0:2:25]} 22. Nxf4 {[%emt 0:2:9]} Nxf4 {[%emt 0:0:5]} 23. Bxf4 {[%emt 0:2:40]} Qxf4 {[%emt 0:0:6]} 24. a5 {[%emt 0:0:58]} b5 {[%emt 0:4:58]} 25. Qd2 {[%emt 0:1:58]} Qxd2 {[%emt 0:1:41]} 26. Nxd2 {[%emt 0:0:10]} c5 {[%emt 0:1:24]} 27. dxc6 {[%emt 0:1:58]} Bxc6 {[%emt 0:0:4]} 28. Nf1 {[%emt 0:0:42]} Rfd8 {[%emt 0:0:34]} 29. Red1 {[%emt 0:1:41]} Be7 {[%emt 0:1:45]} 30. Ne3 {[%emt 0:2:12]} Rd4 {[%emt 0:1:51]} 31. Nf5 {[%emt 0:0:57]} Rd7 {[%emt 0:0:20]} 32. Bxb5 {[%emt 0:1:13]} Rxd1+ {[%emt 0:4:33]} 33. Rxd1 {[%emt 0:0:1]} Bxb5 {[%emt 0:0:38]} 34. Nxe7+ {[%emt 0:0:2]} Kf8 {[%emt 0:0:8]} 35. Nf5 {[%emt 0:0:22]} Rc8 {[%emt 0:0:39]} 36. h3 {[%emt 0:3:31]} h5 {[%emt 0:0:42]} 37. Rd5 {[%emt 0:3:0]} f6 {[%emt 0:0:54]} 38. Nd6 {[%emt 0:0:45]} Rc1+ {[%emt 0:0:7]} 39. Kh2 {[%emt 0:0:2]} Bf1 {[%emt 0:0:55]} 40. Rc5 {[%emt 0:0:41]} Rb1 {[%emt 0:1:1]} 41. Rc8+ {[%emt 0:31:31]} Ke7 {[%emt 0:30:10]} 42. Nf5+ {[%emt 0:0:16]} Kd7 {[%emt 0:0:6]} 43. Rg8 {[%emt 0:5:2]} g5 {[%emt 0:0:0]} 44. Rg6 {[%emt 0:0:0]} Rxb4 {[%emt 0:0:0]} 45. Rxf6 {[%emt 0:0:0]} Bb5 {[%emt 0:0:0]} 46. f3 {[%emt 0:0:0]} Ra4 {[%emt 0:0:0]} 47. Rd6+ {[%emt 0:0:0]} Kc7 {[%emt 0:0:0]} 48. Rd5 {[%emt 0:0:0]} Rxa5 {[%emt 0:0:0]} 49. Rxe5 {[%emt 0:0:0]} g4 {[%emt 0:0:0]} 50. fxg4 {[%emt 0:0:0]} hxg4 {[%emt 0:0:0]} 51. h4 {[%emt 0:0:0]} Bd3 {[%emt 0:0:26]} 52. h5 {[%emt 0:0:0]} Bxe4 {[%emt 0:0:53]} 53. h6 {[%emt 0:0:0]} g3+ {[%emt 0:0:16]} 1-0